fUSD/lending_fUSD_20250930
["ID","MTS","AMOUNT","RATE_DAILY","PERIOD"]
[388510080,1759223469315,-482.20087491,0.0001977,2]
[388510081,1759223469324,-1038.52,0.0001977,2]
[388510082,1759223469334,-671.85,0.0001977,2]
[388510083,1759223469344,-585.54,0.0001977,2]
[388510084,1759223469354,-830.31,0.0001977,2]
[388510085,1759223469363,-500.0,0.0001977,2]
[388510086,1759223469373,-500.0,0.0001977,2]
[388510087,1759223469383,-500.0,0.0001977,2]
[388510088,1759223469393,-1116.402153,0.0001977,2]
[388510089,1759223469404,-386.58767,0.0001977,2]
[388510090,1759223469416,-312.99006427,0.0001977,2]
[388510091,1759223469427,-381.06011273,0.0001977,2]
[388510092,1759223469437,-188.62272087,0.0001977,2]
[388510093,1759223469461,-311.37727913,0.0001977,2]
[388510094,1759223469471,-500.0,0.0001977,2]
[388510095,1759223469480,-500.0,0.0001977,2]
[388510096,1759223469490,-205.99301458,0.0001977,2]
[388510097,1759223469499,-623.19,0.0001977,2]
[388510098,1759223469508,-730.2255162,0.0001977,2]
[388510099,1759223469519,-937.0944838,0.0001977,2]
[388510100,1759223469529,-500.0,0.0001977,2]
[388510101,1759223469539,-537.56,0.0001977,2]
[388510102,1759223469548,-1315.25818416,0.0001977,2]
[388510103,1759223469568,-929.95045475,0.0001977,2]
[388510104,1759223469579,-273.00614092,0.0001977,2]
[388510106,1759223502739,-1355.38767787,0.00017377,2]
[388510107,1759223502763,-1355.38767787,0.00017444,2]
[388510108,1759223502786,-1355.38767787,0.0001745,2]
[388510109,1759223502812,-130.12696639,0.00017457,2]
[388510388,1759224309908,317.9,0.00025,60]
[388510462,1759224519605,161.92,0.00015,2]
[388510496,1759224631816,-408.84836299,0.00017361,2]
[388510497,1759224631828,-579.80622036,0.00017364,2]
[388510498,1759224631840,-562.249999,0.00017364,2]
[388510499,1759224631852,-788.9,0.00017364,2]
[388510500,1759224631883,-163.36280889,0.00017364,2]
[388510501,1759224631893,-913.80406253,0.00017364,2]
[388510502,1759224631905,-954.55678526,0.00017364,2]
[388510503,1759224631915,-208.68469465,0.00017364,2]
[388510504,1759224631926,-408.84836299,0.00017366,2]
[388510505,1759224631936,-208.68469465,0.00017372,2]
[388510506,1759224631946,-1506.51243394,0.00017373,2]
[388510507,1759224631956,-1370.94521865,0.00017377,2]
[388510508,1759224631967,-203.51281268,0.00017378,2]
[388510509,1759224631977,-2094.31902825,0.0001738,2]
[388510510,1759224631987,-208.68469465,0.00017382,2]
[388510511,1759224631998,-800.92466081,0.00017382,2]
[388510512,1759224632008,-1868.36084779,0.00017383,2]
[388510513,1759224632019,-1370.94521865,0.00017386,2]
[388510514,1759224632029,-1506.51243394,0.00017393,2]
[388510515,1759224632039,-862.98501568,0.00017394,2]
[388510516,1759224632049,-836.80673131,0.00017399,2]
[388510517,1759224632061,-534.13848734,0.00017399,2]
[388510518,1759224632071,-408.84836299,0.000174,2]
[388510519,1759224632081,-1868.36084779,0.00017401,2]
[388510520,1759224632091,-1370.94521865,0.00017402,2]
[388510521,1759224632101,-800.92466081,0.00017404,2]
[388510522,1759224632111,-718.97980172,0.00017406,2]
[388510625,1759224633670,-144.00521396,0.00017406,2]
[388510626,1759224633680,-2094.31902825,0.00017408,2]
[388510627,1759224633690,-862.98501568,0.0001741,2]
[388510628,1759224633700,-1506.51243394,0.0001741,2]
[388510629,1759224633709,-203.51281268,0.00017411,2]
[388510630,1759224633720,-208.68469465,0.00017415,2]
[388510631,1759224633730,-1370.94521865,0.00017415,2]
[388510632,1759224633740,-800.92466081,0.00017421,2]
[388510633,1759224633750,-408.84836299,0.00017422,2]
[388510634,1759224633759,-800.92466081,0.00017422,2]
[388510635,1759224633770,-10748.06633899,0.00017424,2]
[388510636,1759224633780,-408.84836299,0.00017427,2]
[388510637,1759224633790,-2405.16754435,0.0001743,2]
[388510638,1759224633803,-640.0396524,0.0001743,2]
[388510639,1759224633902,-1581.64068833,0.0001743,2]
[388510640,1759224633913,-1373.69700546,0.0001743,2]
[388510641,1759224633947,-387.90061276,0.0001743,2]
[388510642,1759224633958,-1508.40480003,0.0001743,2]
[388510643,1759224633970,-526.984644,0.0001743,2]
[388510644,1759224633982,-507.13326329,0.0001743,2]
[388510645,1759224633993,-1713.02340803,0.0001743,2]
[388510646,1759224634090,-104.07472034,0.0001743,2]
[388510647,1759224634101,-681.80974446,0.00017434,2]
[388510648,1759224634112,-1345.0415323,0.00017434,2]
[388510649,1759224634124,-67.46775149,0.00017434,2]
[388510650,1759224634134,-357.68804605,0.00017439,2]
[388510651,1759224634144,-1868.36084779,0.00017439,2]
[388510652,1759224634154,-2094.31902825,0.0001744,2]
[388510653,1759224634164,-3431.4224262,0.00017441,2]
[388510654,1759224634176,-1914.75277448,0.00017441,2]
[388510655,1759224634187,-624.6388998,0.00017441,2]
[388510656,1759224634199,-490.01556686,0.00017441,2]
[388510657,1759224634213,-581.5,0.00017441,2]
[388510660,1759224637855,-3571.15159687,0.00017441,2]
[388510661,1759224637867,-134.58507478,0.00017441,2]
[388510662,1759224637878,-357.68804605,0.00017441,2]
[388510663,1759224637887,-408.84836299,0.00017441,2]
[388510664,1759224637897,-203.51281268,0.00017442,2]
[388510665,1759224637907,-800.92466081,0.00017444,2]
[388510666,1759224637917,-357.68804605,0.00017445,2]
[388510667,1759224637927,-1370.94521865,0.00017446,2]
[388510668,1759224637937,-357.68804605,0.00017446,2]
[388510669,1759224637946,-203.51281268,0.00017446,2]
[388510670,1759224637956,-408.84836299,0.00017448,2]
[388510671,1759224637966,-1506.51243394,0.00017449,2]
[388510672,1759224637976,-981.47920179,0.00017457,2]
[388510674,1759224638215,-243.78150969,0.00017457,2]
[388510675,1759224638229,-357.68804605,0.00017457,2]
[388510676,1759224638239,-862.98501568,0.00017458,2]
[388510677,1759224638249,-357.68804605,0.00017458,2]
[388510678,1759224638259,-862.98501568,0.0001746,2]
[388510679,1759224638270,-203.51281268,0.00017461,2]
[388510680,1759224638280,-10748.06633899,0.00017463,2]
[388510681,1759224638290,-2094.31902825,0.00017464,2]
[388510682,1759224638301,-1868.36084779,0.00017465,2]
[388510683,1759224638311,-1355.38767787,0.00017466,2]
[388510684,1759224638320,-1506.51243394,0.00017468,2]
[388510685,1759224638330,-208.68469465,0.0001747,2]
[388510686,1759224638340,-1355.38767787,0.0001747,2]
[388510687,1759224638350,-10748.06633899,0.0001747,2]
[388510688,1759224638359,-862.98501568,0.00017472,2]
[388510689,1759224638369,-1370.94521865,0.00017473,2]
[388510690,1759224638379,-800.92466081,0.00017474,2]
[388510691,1759224638390,-1868.36084779,0.00017475,2]
[388510692,1759224638399,-10748.06633899,0.00017477,2]
[388510693,1759224638409,-10748.06633899,0.00017482,2]
[388510694,1759224638420,-800.92466081,0.00017484,2]
[388510695,1759224638429,-1355.38767787,0.00017484,2]
[388510696,1759224638440,-203.51281268,0.00017484,2]
[388510697,1759224638451,-357.68804605,0.00017486,2]
[388510698,1759224638462,-1868.36084779,0.00017487,2]
[388510699,1759224638472,-203.51281268,0.00017488,2]
[388510700,1759224638488,-1506.51243394,0.00017489,2]
[388510701,1759224638498,-208.68469465,0.00017491,2]
[388510702,1759224638508,-862.98501568,0.00017493,2]
[388510703,1759224638528,-208.68469465,0.00017493,2]
[388510704,1759224638539,-2094.31902825,0.00017496,2]
[388510705,1759224638549,-1506.51243394,0.00017499,2]
[388510706,1759224638558,-150.0,0.00017778,2]
[388510707,1759224638568,-150.0,0.00017778,2]
[388510708,1759224638578,-150.0,0.00017778,2]
[388510709,1759224638588,-150.0,0.00017778,2]
[388510710,1759224638598,-150.0,0.000178,2]
[388510711,1759224638608,-317.71490003,0.0001787,2]
[388510712,1759224638618,-300.0,0.00017999,2]
[388510713,1759224638628,-1200.0,0.00017999,2]
[388510714,1759224638637,-11867.91234026,0.00018,2]
[388510715,1759224638647,-164.32,0.00018272,2]
[388510716,1759224638658,-245.72,0.00018365,2]
[388510717,1759224638667,-2672.07,0.00018427,2]
[388510718,1759224638677,-4565.88,0.00018499,2]
[388510719,1759224638687,-1443.16,0.000186,7]
[388510720,1759224638699,-152.65,0.000187,2]
[388510721,1759224638709,-151.37,0.000187,2]
[388510722,1759224638719,-151.67,0.000187,2]
[388510723,1759224638730,-151.36,0.00018813,2]
[388510724,1759224638740,-151.04,0.00018813,2]
[388510725,1759224638750,-474.52590314,0.00018836,2]
[388510726,1759224638761,-151.35,0.00018838,2]
[388510727,1759224638771,-150.77,0.00018839,2]
[388510728,1759224638781,-152.74,0.00018839,2]
[388510729,1759224638791,-150.17,0.00018839,2]
[388510730,1759224638800,-150.29,0.00018839,2]
[388510731,1759224638811,-151.52,0.00018839,2]
[388510732,1759224638821,-151.82,0.00018839,2]
[388510733,1759224638831,-151.32,0.00018839,2]
[388510734,1759224638842,-152.98,0.00018839,2]
[388510735,1759224638853,-150.29,0.00018839,2]
[388510736,1759224638864,-814.0,0.00018867,2]
[388510737,1759224638874,-4113.0,0.00018867,2]
[388510738,1759224638883,-976.947,0.00018867,2]
[388510739,1759224638893,-500.0,0.00018931,2]
[388510740,1759224638903,-150.0,0.0001898,2]
[388510741,1759224638914,-151.0,0.00019178,2]
[388510742,1759224638924,-322.6107,0.00019381,2]
[388510743,1759224638934,-1000.0,0.00019383,2]
[388510744,1759224638944,-309.82028122,0.00019383,2]
[388510745,1759224638955,-16258.5729,0.00019384,2]
[388510746,1759224638966,-4914.30032636,0.00019389,2]
[388510747,1759224638977,-1007.84917001,0.00019389,2]
[388510748,1759224638988,-553.50853214,0.0001939,2]
[388510749,1759224638998,-8010.63108138,0.0001939,2]
[388510750,1759224639008,-157.61341699,0.0001939,2]
[388510751,1759224639018,-1000.0,0.00019391,2]
[388510752,1759224639029,-5000.0,0.00019391,2]
[388510753,1759224639039,-916.144226,0.00019392,2]
[388510754,1759224639050,-27461.2448,0.00019393,2]
[388510755,1759224639060,-1735.6535,0.00019393,2]
[388510756,1759224639071,-1000.0,0.00019394,2]
[388510757,1759224639080,-159.44039612,0.00019394,2]
[388510758,1759224639090,-4914.30032632,0.00019446,2]
[388510759,1759224639100,-8010.63108134,0.00019447,2]
[388510760,1759224639109,-1007.84916994,0.00019462,2]
[388510761,1759224639119,-500.0,0.00019473,2]
[388510762,1759224639130,-500.0,0.00019473,2]
[388510763,1759224639140,-157.61341697,0.00019475,2]
[388510764,1759224639150,-247.12912848,0.00019481,2]
[388510765,1759224639160,-151.0,0.00019488,2]
[388510766,1759224639170,-500.0,0.00019488,2]
[388510767,1759224639180,-296.10018115,0.00019488,2]
[388510768,1759224639191,-191.42264385,0.00019488,2]
[388510769,1759224639201,-500.0,0.00019488,2]
[388510770,1759224639212,-500.0,0.00019488,2]
[388510771,1759224639223,-326.42308027,0.00019488,2]
[388510772,1759224639237,-500.0,0.00019488,2]
[388510773,1759224639247,-500.0,0.00019488,2]
[388510774,1759224639257,-500.0,0.00019488,2]
[388510775,1759224639267,-500.0,0.00019488,2]
[388510776,1759224639276,-500.0,0.00019488,2]
[388510777,1759224639285,-1305.01,0.00019488,2]
[388510778,1759224639296,-1952.92,0.00019488,2]
[388510779,1759224639305,-2835.22,0.00019488,2]
[388510780,1759224639315,-4009.26,0.00019488,2]
[388510781,1759224639325,-7138.44,0.00019488,2]
[388510782,1759224639337,-567.58,0.00019488,2]
[388510783,1759224639347,-559.49,0.00019488,2]
[388510784,1759224639357,-912.99,0.00019488,2]
[388510785,1759224639367,-1285.08,0.00019488,2]
[388510786,1759224639381,-2052.05,0.00019488,2]
[388510787,1759224639392,-1404.46,0.00019488,2]
[388510788,1759224639402,-500.0,0.00019488,2]
[388510789,1759224639412,-1207.98,0.00019488,2]
[388510790,1759224639421,-500.0,0.00019488,2]
[388510791,1759224639431,-500.0,0.00019488,2]
[388510792,1759224639441,-869.98,0.00019488,2]
[388510793,1759224639451,-636.7,0.00019488,2]
[388510794,1759224639460,-2209.95,0.00019488,2]
[388510795,1759224639471,-2521.33,0.00019488,2]
[388510796,1759224639481,-505.0,0.00019488,2]
[388510797,1759224639490,-3489.08,0.00019488,2]
[388510798,1759224639500,-5965.34,0.00019488,2]
[388510799,1759224639510,-675.4,0.00019488,2]
[388510800,1759224639520,-4772.65,0.00019488,2]
[388510801,1759224639529,-2610.29,0.00019488,2]
[388510802,1759224639539,-500.0,0.00019488,2]
[388510803,1759224639551,-2933.2,0.00019488,2]
[388510804,1759224639561,-560.2,0.00019488,2]
[388510805,1759224639571,-500.0,0.00019488,2]
[388510806,1759224639580,-939.87,0.00019488,2]
[388510807,1759224639591,-756.69278076,0.00019488,2]
[388510810,1759224640222,-1825.37721924,0.00019488,2]
[388510811,1759224640234,-444.82278076,0.00019488,2]
[388510812,1759224640246,-55.17721924,0.00019488,2]
[388510813,1759224640256,-1666.55,0.00019488,2]
[388510814,1759224640267,-489.09656111,0.00019488,2]
[388510815,1759224640276,-485.72621965,0.00019488,2]
[388510816,1759224640387,-3130.77378035,0.00019488,2]
[388510817,1759224640398,-500.0,0.00019488,2]
[388510818,1759224640408,-714.15,0.00019488,2]
[388510819,1759224640419,-1629.07,0.00019488,2]
[388510820,1759224640429,-622.51,0.00019488,2]
[388510821,1759224640438,-875.78,0.00019488,2]
[388510822,1759224640448,-895.63,0.00019488,2]
[388510823,1759224640458,-2806.04,0.00019488,2]
[388510824,1759224640468,-500.0,0.00019488,2]
[388510825,1759224640479,-500.0,0.00019488,2]
[388510826,1759224640489,-13823.05,0.00019488,2]
[388510827,1759224640500,-500.0,0.00019488,2]
[388510828,1759224640509,-889.11,0.00019488,2]
[388510829,1759224640520,-3494.97,0.00019488,2]
[388510830,1759224640532,-3798.9,0.00019488,2]
[388510831,1759224640542,-1374.12,0.00019488,2]
[388510832,1759224640553,-500.0,0.00019488,2]
[388510833,1759224640563,-647.34,0.00019488,2]
[388510834,1759224640574,-3050.9,0.00019488,2]
[388510835,1759224640583,-610.47,0.00019488,2]
[388510836,1759224640594,-534.66,0.00019489,2]
[388510837,1759224640604,-1176.24,0.00019489,2]
[388510838,1759224640614,-500.0,0.00019489,2]
[388510839,1759224640624,-967.75,0.00019489,2]
[388510840,1759224640634,-500.0,0.00019489,2]
[388510841,1759224640644,-1251.83,0.00019489,2]
[388510842,1759224640654,-500.0,0.00019489,2]
[388510843,1759224640664,-500.0,0.00019489,2]
[388510844,1759224640674,-500.0,0.00019489,2]
[388510845,1759224640683,-500.0,0.00019489,2]
[388510846,1759224640694,-500.0,0.00019489,2]
[388510847,1759224640703,-6078.21,0.00019489,2]
[388510848,1759224640714,-500.0,0.00019489,2]
[388510849,1759224640727,-4340.94,0.00019489,2]
[388510850,1759224640737,-2436.36,0.00019489,2]
[388510851,1759224640747,-3203.57,0.00019489,2]
[388510852,1759224640756,-3003.39144959,0.00019489,2]
[388510853,1759224640809,-2772.26614812,0.00019489,2]
[388510854,1759224640856,-2706.98197448,0.00019489,2]
[388510855,1759224640882,-618.58719776,0.00019489,2]
[388510857,1759224643067,-569.0,0.00018867,2]
[388510858,1759224643079,-1204.53,0.00019488,2]
[388510859,1759224643089,-1437.22,0.00019489,2]
[388510860,1759224643099,-1234.30489371,0.00019489,2]
[388510861,1759224643234,-500.0,0.00019488,2]
[388510862,1759224643245,-427.76,0.00019488,2]
[388510863,1759224643256,-147.12,0.00019488,2]
[388510864,1759224643266,-3728.00510629,0.00019489,2]
[388510865,1759224643275,-500.0,0.00019489,2]
[388510866,1759224643285,-11291.56,0.00019489,2]
[388510867,1759224643295,-5454.24,0.00019489,2]
[388510868,1759224643310,-2886.64,0.00019489,2]
[388510869,1759224643326,-5826.17,0.00019489,2]
[388510870,1759224643339,-908.36,0.00019489,2]
[388510871,1759224643352,-822.26,0.00019489,2]
[388510872,1759224643364,-1708.41,0.00019489,2]
[388510873,1759224643375,-2247.49,0.00019489,2]
[388510874,1759224643389,-3471.75,0.00019489,2]
[388510875,1759224643402,-5428.75,0.00019489,2]
[388510878,1759224643415,-500.0,0.00019489,2]
[388510880,1759224643428,-3794.96,0.00019489,2]
[388510882,1759224643441,-500.0,0.00019489,2]
[388510885,1759224643454,-3156.07,0.00019489,2]
[388510905,1759224645029,-4905.9,0.00019489,2]
[388510906,1759224645061,-702.08,0.00019489,2]
[388510907,1759224645096,-2800.65,0.00019489,2]
[388510908,1759224645125,-500.0,0.00019489,2]
[388510909,1759224645160,-7814.16,0.00019489,2]
[388510910,1759224645194,-3472.86,0.00019489,2]
[388510911,1759224645209,-15157.33,0.00019489,2]
[388510912,1759224645219,-500.0,0.00019489,2]
[388510913,1759224645231,-308.55618605,0.00019489,2]
[388510914,1759224645241,-248.74129862,0.00019489,2]
[388510915,1759224645251,-500.0,0.00019489,2]
[388510916,1759224645261,-366.53851041,0.00019489,2]
[388510917,1759224645270,-3141.8,0.00019489,2]
[388510918,1759224645279,-1209.44,0.00019489,2]
[388510919,1759224645289,-2894.56,0.00019489,2]
[388510920,1759224645300,-3554.85,0.00019489,2]
[388510921,1759224645310,-508.09,0.00019489,2]
[388510922,1759224645320,-6767.73,0.00019489,2]
[388510923,1759224645330,-5971.89,0.00019489,2]
[388510924,1759224645340,-1093.27,0.00019489,2]
[388510925,1759224645350,-500.0,0.00019489,2]
[388510926,1759224645359,-5796.59,0.00019489,2]
[388510927,1759224645368,-543.32,0.00019489,2]
[388510928,1759224645378,-500.0,0.00019489,2]
[388510929,1759224645388,-1390.72,0.00019489,2]
[388510930,1759224645397,-5728.23,0.00019489,2]
[388510931,1759224645407,-4892.13,0.00019489,2]
[388510932,1759224645416,-2832.16,0.00019489,2]
[388510933,1759224645425,-1250.3,0.00019489,2]
[388510934,1759224645435,-156.784,0.00019489,2]
[388510935,1759224645444,-500.0,0.00019489,2]
[388510936,1759224645454,-3660.6,0.00019489,2]
[388510937,1759224645463,-500.0,0.0001949,2]
[388510938,1759224645473,-500.0,0.0001949,2]
[388510939,1759224645483,-500.0,0.0001949,2]
[388510940,1759224645493,-500.0,0.0001949,2]
[388510941,1759224645503,-1207.11,0.0001949,2]
[388510942,1759224645512,-500.0,0.0001949,2]
[388510943,1759224645521,-1622.17,0.0001949,2]
[388510944,1759224645531,-500.0,0.0001949,2]
[388510945,1759224645540,-500.0,0.0001949,2]
[388510946,1759224645550,-607.43,0.0001949,2]
[388510947,1759224645560,-500.0,0.0001949,2]
[388510948,1759224645570,-2343.79,0.0001949,2]
[388510949,1759224645579,-500.0,0.0001949,2]
[388510950,1759224645589,-500.0,0.0001949,2]
[388510951,1759224645599,-5079.54,0.0001949,2]
[388510952,1759224645608,-500.0,0.0001949,2]
[388510953,1759224645618,-3531.38,0.0001949,2]
[388510954,1759224645627,-500.0,0.0001949,2]
[388510955,1759224645636,-500.0,0.0001949,2]
[388510956,1759224645645,-500.0,0.0001949,2]
[388510957,1759224645654,-2664.61,0.0001949,2]
[388510958,1759224645664,-1341.08,0.0001949,2]
[388510959,1759224645673,-730.95,0.0001949,2]
[388510960,1759224645682,-500.0,0.0001949,2]
[388510961,1759224645692,-500.0,0.0001949,2]
[388510962,1759224645702,-2342.67,0.0001949,2]
[388510963,1759224645712,-500.0,0.0001949,2]
[388510964,1759224645722,-500.0,0.0001949,2]
[388510965,1759224645732,-500.0,0.0001949,2]
[388510966,1759224645743,-3279.14,0.0001949,2]
[388510968,1759224645752,-2025.95,0.0001949,2]
[388510970,1759224645762,-500.0,0.0001949,2]
[388510971,1759224645771,-627.27,0.0001949,2]
[388510973,1759224645780,-4754.98,0.0001949,2]
[388510974,1759224645790,-500.0,0.0001949,2]
[388510975,1759224645799,-6005.99,0.0001949,2]
[388510976,1759224645808,-500.0,0.0001949,2]
[388510978,1759224645819,-4427.72,0.0001949,2]
[388510980,1759224645829,-500.0,0.0001949,2]
[388510982,1759224645839,-1571.07,0.0001949,2]
[388510983,1759224645848,-500.0,0.0001949,2]
[388510984,1759224645858,-4862.36,0.0001949,2]
[388510985,1759224645867,-514.07,0.0001949,2]
[388510986,1759224645877,-500.0,0.0001949,2]
[388510987,1759224645886,-2667.7,0.0001949,2]
[388510988,1759224645896,-500.0,0.0001949,2]
[388510989,1759224645905,-4298.71,0.0001949,2]
[388510990,1759224645915,-500.0,0.0001949,2]
[388510991,1759224645924,-500.0,0.0001949,2]
[388510992,1759224645935,-2914.72,0.0001949,2]
[388510993,1759224645945,-1597.56,0.0001949,2]
[388510994,1759224645955,-500.0,0.0001949,2]
[388510995,1759224645971,-500.0,0.0001949,2]
[388510996,1759224645986,-500.0,0.0001949,2]
[388510997,1759224645999,-500.0,0.0001949,2]
[388510998,1759224646017,-2517.89,0.0001949,2]
[388510999,1759224646027,-500.0,0.0001949,2]
[388511000,1759224646037,-563.93,0.0001949,2]
[388511001,1759224646047,-500.0,0.0001949,2]
[388511002,1759224646056,-4358.42,0.0001949,2]
[388511003,1759224646066,-5168.99,0.0001949,2]
[388511004,1759224646076,-500.0,0.0001949,2]
[388511005,1759224646086,-2872.46,0.0001949,2]
[388511006,1759224646096,-500.0,0.0001949,2]
[388511007,1759224646105,-1563.77,0.0001949,2]
[388511008,1759224646115,-2681.07,0.0001949,2]
[388511009,1759224646124,-500.0,0.0001949,2]
[388511010,1759224646134,-500.0,0.0001949,2]
[388511011,1759224646143,-500.0,0.0001949,2]
[388511012,1759224646153,-3989.48,0.0001949,2]
[388511013,1759224646163,-500.0,0.0001949,2]
[388511014,1759224646172,-2804.03,0.0001949,2]
[388511015,1759224646182,-1718.28,0.0001949,2]
[388511016,1759224646191,-500.0,0.0001949,2]
[388511017,1759224646201,-878.68,0.0001949,2]
[388511018,1759224646211,-500.0,0.0001949,2]
[388511019,1759224646221,-500.0,0.0001949,2]
[388511020,1759224646236,-500.0,0.0001949,2]
[388511021,1759224646246,-500.0,0.0001949,2]
[388511022,1759224646256,-500.0,0.0001949,2]
[388511023,1759224646265,-2614.0,0.0001949,2]
[388511024,1759224646276,-4350.63,0.0001949,2]
[388511025,1759224646286,-500.0,0.0001949,2]
[388511026,1759224646295,-500.0,0.0001949,2]
[388511027,1759224646307,-500.0,0.0001949,2]
[388511028,1759224646316,-2151.86,0.0001949,2]
[388511029,1759224646325,-2875.94,0.0001949,2]
[388511030,1759224646334,-500.0,0.0001949,2]
[388511031,1759224646344,-500.0,0.0001949,2]
[388511032,1759224646353,-500.0,0.0001949,2]
[388511033,1759224646363,-2376.16,0.0001949,2]
[388511034,1759224646372,-500.0,0.0001949,2]
[388511035,1759224646382,-500.0,0.0001949,2]
[388511036,1759224646392,-941.64,0.0001949,2]
[388511037,1759224646401,-500.0,0.0001949,2]
[388511038,1759224646411,-500.0,0.0001949,2]
[388511039,1759224646420,-1773.2,0.0001949,2]
[388511040,1759224646430,-1873.54,0.0001949,2]
[388511041,1759224646439,-500.0,0.0001949,2]
[388511042,1759224646449,-758.62,0.0001949,2]
[388511043,1759224646459,-500.0,0.0001949,2]
[388511044,1759224646469,-3446.62,0.0001949,2]
[388511045,1759224646478,-560.14,0.0001949,2]
[388511046,1759224646488,-3733.42,0.0001949,2]
[388511047,1759224646498,-500.0,0.0001949,2]
[388511048,1759224646507,-500.0,0.0001949,2]
[388511049,1759224646522,-831.46,0.0001949,2]
[388511050,1759224646532,-500.0,0.0001949,2]
[388511051,1759224646542,-500.0,0.0001949,2]
[388511052,1759224646551,-500.0,0.0001949,2]
[388511053,1759224646561,-500.0,0.0001949,2]
[388511054,1759224646572,-809.54,0.0001949,2]
[388511055,1759224646582,-500.0,0.0001949,2]
[388511056,1759224646592,-500.0,0.0001949,2]
[388511057,1759224646602,-500.0,0.0001949,2]
[388511058,1759224646613,-1992.18,0.0001949,2]
[388511059,1759224646623,-1095.95,0.0001949,2]
[388511060,1759224646632,-500.0,0.0001949,2]
[388511061,1759224646642,-3009.54,0.0001949,2]
[388511062,1759224646652,-500.0,0.0001949,2]
[388511063,1759224646661,-500.0,0.0001949,2]
[388511064,1759224646671,-627.81610196,0.0001949,2]
[388511065,1759224646680,-500.0,0.0001949,2]
[388511066,1759224646691,-1428.29,0.0001949,2]
[388511067,1759224646701,-500.0,0.0001949,2]
[388511068,1759224646711,-500.0,0.0001949,2]
[388511069,1759224646721,-500.0,0.0001949,2]
[388511070,1759224646730,-1506.72,0.0001949,2]
[388511071,1759224646740,-500.0,0.0001949,2]
[388511072,1759224646750,-802.1,0.0001949,2]
[388511073,1759224646760,-3581.35,0.0001949,2]
[388511074,1759224646770,-500.0,0.0001949,2]
[388511075,1759224646779,-500.0,0.0001949,2]
[388511076,1759224646789,-2617.33,0.0001949,2]
[388511077,1759224646799,-500.0,0.0001949,2]
[388511078,1759224646808,-500.0,0.0001949,2]
[388511079,1759224646817,-1229.93,0.0001949,2]
[388511080,1759224646827,-555.46,0.0001949,2]
[388511081,1759224646837,-500.0,0.0001949,2]
[388511082,1759224646847,-500.0,0.0001949,2]
[388511083,1759224646857,-781.14,0.0001949,2]
[388511084,1759224646869,-2847.66,0.0001949,2]
[388511085,1759224646879,-500.0,0.0001949,2]
[388511086,1759224646889,-500.0,0.0001949,2]
[388511087,1759224646899,-664.08,0.0001949,2]
[388511088,1759224646911,-2144.42,0.0001949,2]
[388511089,1759224646922,-500.0,0.0001949,2]
[388511090,1759224646932,-2299.84,0.0001949,2]
[388511091,1759224646942,-500.0,0.0001949,2]
[388511092,1759224646952,-4861.29,0.0001949,2]
[388511093,1759224646962,-500.0,0.0001949,2]
[388511094,1759224646972,-500.0,0.0001949,2]
[388511095,1759224646982,-517.95275986,0.0001949,2]
[388511096,1759224646992,-3538.65,0.0001949,2]
[388511097,1759224647002,-500.0,0.0001949,2]
[388511098,1759224647011,-500.0,0.0001949,2]
[388511099,1759224647021,-500.0,0.0001949,2]
[388511100,1759224647031,-2328.56,0.0001949,2]
[388511101,1759224647044,-3890.71,0.0001949,2]
[388511102,1759224647054,-500.0,0.0001949,2]
[388511103,1759224647064,-642.04,0.0001949,2]